[Event "Israeli Open Championship 2019"]
[Site "Jerusalem"]
[Date "2019.12.19"]
[Round "7.16"]
[White "Nissim, Yonatan"]
[Black "Gunders, Elad"]
[Result "1-0"]
[ECO "D36"]
[WhiteElo "2040"]
[BlackElo "1803"]
[Annotator "NA"]
[PlyCount "67"]
[EventDate "2019.12.12"]
[EventType "swiss"]
[EventCountry "ISR"]
[SourceTitle "playchess.com"]
[Source "ChessBase"]
[SourceQuality "1"]
[TimeControl "5400+30"]

1. d4 {[%emt 0:00:00]} d5 {[%emt 0:00:00]} 2. c4 {[%emt 0:00:00]} e6 {[%emt 0:00:00]} 3. Nc3 {[%emt 0:00:00]} Nf6 {[%emt 0:00:00]} 4. cxd5 {[%emt 0:00:00]} exd5 {[%emt 0:00:00]} 5. Bg5 {[%emt 0:00:07]} Nbd7 {[%emt 0:02:26]} 6. e3 {[%emt 0:00:22]} Be7 {[%emt 0:00:26]} 7. Bd3 {[%emt 0:00:07]} O-O {[%emt 0:00:38]} 8. Qc2 {[%emt 0:00:08]} c6 {[%emt 0:01:05]} 9. Nf3 {[%emt 0:00:19]} Re8 {[%emt 0:00:52]} 10. O-O {[%emt 0:00:26]} Ne4 {[%emt 0:01:22]} 11. Bxe4 {[%emt 0:00:57]} dxe4 {[%emt 0:02:44]} 12. Nxe4 {[%emt 0:00:42]} Bxg5 {[%emt 0:02:59] D36: Queen's Gambit Declined: Exchange Variation: Main line (5 Bg5 c6 6 Qc2)} 13. Nexg5 {[%emt 0:02:17]} Nf6 {[%emt 0:03:59]} (13... Nf8 14. Ne4 Bf5 15. Nfd2 Bg6 16. Rfe1 Qe7 17. f3 Rad8 18. Qc3 Rd5 19. b4 Ne6 20. Nc5 f5 21. Nc4 Ng5 {1-0 (41) Kharlov,A (2639)-Petukhov,V (2497) Tomsk 2001}) 14. Ne5 {[%emt 0:01:18]} Be6 {[%emt 0:00:52]} 15. Nxe6 {[%emt 0:02:37]} Rxe6 {[%emt 0:00:02]} 16. Rad1 $146 {[%emt 0:02:00]} ({Predecessor:} 16. Rac1 Qd5 17. Qc4 Rd8 18. Qxd5 Rxd5 19. Rc2 h6 20. Rfc1 {½-½ (35) Mueller,S (1460)-Kluge,R (1499) Stennweiler 2014}) 16... Nd7 {[%emt 0:05:04]} 17. f4 {[%emt 0:07:44]} Nxe5 {[%emt 0:04:29]} 18. fxe5 {[%emt 0:01:05]} Qe7 {[%emt 1:12:02]} 19. Qf5 {[%emt 0:07:24]} f6 {[%emt 0:00:00]} 20. exf6 {[%emt 0:04:38]} Rxf6 {[%emt 0:00:00]} 21. Qd3 {[%emt 0:00:58]} Raf8 {[%emt 0:00:00]} 22. Rxf6 {[%emt 0:03:33]} Qxf6 {[%emt 0:00:00]} 23. Rd2 {[%emt 0:02:03]} Qh4 {[%emt 0:00:00]} 24. Re2 {[%emt 0:08:08]} Qf6 {[%emt 0:00:00]} 25. Qd1 {[%emt 0:00:51]} Qe7 {[%emt 0:00:00]} 26. e4 {[%emt 0:00:43]} c5 {[%emt 0:00:00]} 27. d5 {[%emt 0:01:59]} Qe5 {[%emt 0:00:00]} 28. Qd3 $16 {[%emt 0:06:00]} b6 {[%emt 0:00:00]} 29. d6 {[%emt 0:05:10]} Rd8 {[%emt 0:00:00]} 30. Rd2 {[%emt 0:01:33]} Kf7 {[%emt 0:00:00]} 31. Qc4+ {[%emt 0:03:33]} Ke8 {[%emt 0:00:00]} 32. Qg8+ {[%emt 0:01:46]} Kd7 {[%emt 0:00:00]} 33. Qf7+ {[%emt 0:00:06]} Kc8 {[%emt 0:00:00]} 34. Qc7# {[%emt 0:38:26]} 1-0

[Event "Israeli Open Championship 2019"]
[Site "Jerusalem"]
[Date "2019.12.19"]
[Round "7.17"]
[White "Elsner, Yair"]
[Black "Kuritz, Zvi"]
[Result "0-1"]
[ECO "E17"]
[WhiteElo "1585"]
[BlackElo "1907"]
[Annotator "NA"]
[PlyCount "50"]
[EventDate "2019.12.12"]
[EventType "swiss"]
[EventCountry "ISR"]
[SourceTitle "playchess.com"]
[Source "ChessBase"]
[SourceQuality "1"]
[TimeControl "5400+30"]

1. Nf3 {[%emt 0:00:00]} Nf6 {[%emt 0:00:00]} 2. c4 {[%emt 0:00:00]} b6 {[%emt 0:00:41]} 3. g3 {[%emt 0:00:00]} Bb7 {[%emt 0:03:13]} 4. Bg2 {[%emt 0:00:10]} e6 {[%emt 0:00:17]} 5. O-O {[%emt 0:00:14]} Be7 {[%emt 0:00:16]} 6. d4 {[%emt 0:00:14]} O-O {[%emt 0:00:21]} 7. Re1 {[%emt 0:00:11]} c5 {[%emt 0:03:22]} 8. d5 {[%emt 0:02:38] E17: Queen's Indian: 4 g3 Bb7 5 Bg2 Be7} exd5 {[%emt 0:03:26]} 9. Nh4 {[%emt 0:00:18]} b5 {[%emt 0:07:09]} (9... Ne4 10. cxd5 Bxh4 11. Bxe4 Bf6 12. Nc3 d6 13. Bg2 Re8 14. Bf4 Na6 15. Ne4 Be7 {½-½ (49) Nakamura,H (2749)-Iturrizaga Bonelli,E (2637) chess.com INT 2019}) 10. cxd5 {[%emt 0:00:54]} d6 {[%emt 0:00:12]} 11. Nf5 $146 {[%emt 0:07:08]} ({Predecessor:} 11. e4 Re8 12. Nf5 Bf8 13. Bf4 Bc8 14. a4 b4 15. Nd2 Bxf5 16. exf5 Rxe1+ 17. Qxe1 {1-0 (39) Bellmann,H (2166)-Firsching,G (2017) Germany 1998}) 11... Nbd7 {[%emt 0:03:26]} 12. Bf4 {[%emt 0:03:10]} Nb6 {[%emt 0:01:28]} 13. e4 {[%emt 0:01:45]} Qd7 {[%emt 0:02:57]} 14. Nxe7+ {[%emt 0:20:05]} Qxe7 {[%emt 0:01:56]} 15. Nc3 {[%emt 0:03:56]} Qd7 {[%emt 0:03:52]} 16. Bxd6 {[%emt 0:09:13]} Qxd6 {[%emt 0:00:52]} 17. e5 {[%emt 0:00:02]} Qd8 {[%emt 0:00:49]} 18. exf6 {[%emt 0:00:40]} Qxf6 {[%emt 0:02:18]} 19. Nxb5 {[%emt 0:00:35]} Qxb2 {[%emt 0:01:07]} 20. Nxa7 {[%emt 0:14:14]} Rxa7 {[%emt 0:00:43]} 21. Rb1 {[%emt 0:00:03]} Qf6 {[%emt 0:01:47]} 22. d6 $2 {[%emt 0:04:50]} (22. Qb3 Nd7 23. a4) 22... Bxg2 {[%emt 0:00:22]} 23. Rxb6 $19 {[%emt 0:00:36]} Rxa2 {[%emt 0:03:00]} 24. Re2 {[%emt 0:00:47]} Bf3 {[%emt 0:00:38]} 25. Qb3 {[%emt 0:00:20]} Ra1+ {[%emt 0:00:21]} 0-1

[Event "Israeli Open Championship 2019"]
[Site "Jerusalem"]
[Date "2019.12.19"]
[Round "7.18"]
[White "Gruzman, Ilya"]
[Black "Leor, Ephraim"]
[Result "1-0"]
[ECO "B07"]
[WhiteElo "1889"]
[BlackElo "1704"]
[Annotator "NA"]
[PlyCount "113"]
[EventDate "2019.12.12"]
[EventType "swiss"]
[EventCountry "ISR"]
[SourceTitle "playchess.com"]
[Source "ChessBase"]
[SourceQuality "1"]
[TimeControl "5400+30"]

1. e4 {[%emt 0:00:00]} g6 {[%emt 0:00:00]} 2. d4 {[%emt 0:00:00]} Bg7 {[%emt 0:00:00]} 3. Nc3 {[%emt 0:00:00]} d6 {[%emt 0:00:00]} 4. Bc4 {[%emt 0:00:00]} Nf6 {[%emt 0:00:51]} 5. Qe2 {[%emt 0:00:16]} Nc6 {[%emt 0:04:08]} 6. e5 {[%emt 0:00:11]} Nxd4 {[%emt 0:00:55]} 7. exf6 {[%emt 0:00:08]} Nxe2 {[%emt 0:00:47]} 8. fxg7 {[%emt 0:00:05]} Rg8 {[%emt 0:00:20]} 9. Ngxe2 {[%emt 0:00:04]} Rxg7 {[%emt 0:01:53]} 10. Bh6 {[%emt 0:00:04]} Rg8 {[%emt 0:00:23]} 11. O-O-O {[%emt 0:00:04]} c6 {[%emt 0:01:17]} 12. Bg5 {[%emt 0:09:30] B07: Pirc Defence: Miscellaneous Systems} (12. Rhe1 Be6 13. Bxe6 fxe6 14. Nf4 e5 15. Rxe5 dxe5 16. Rxd8+ Rxd8 17. Ne6 Rd6 18. Ng5 Rf6 19. Nce4 b6 {1-0 (74) Yandemirov,V (2483)-Feoktistov,A (2435) St Petersburg 2003}) 12... b5 $146 {[%emt 0:08:33]} (12... Qa5 $17 13. Bd2 Qc7) ({Predecessor:} 12... Qc7 13. Rhe1 b5 14. Bb3 b4 15. Ne4 d5 16. Nc5 f6 17. Be3 e6 {1-0 (29) Eichner,M (2007)-Walch,I (2111) Bayern 2014}) 13. Nd4 {[%emt 0:09:21]} bxc4 {[%emt 0:11:30]} 14. Nxc6 {[%emt 0:01:26]} Qc7 {[%emt 0:00:25]} (14... Qb6 $11 {remains equal.} 15. Nxe7 Kf8) 15. Nxe7 {[%emt 0:00:49]} Qxe7 {[%emt 0:06:36]} 16. Bxe7 {[%emt 0:00:09]} Kxe7 {[%emt 0:00:06]} 17. Nd5+ {[%emt 0:01:55]} Kd8 {[%emt 0:00:33]} 18. Nf6 {[%emt 0:01:09]} Rh8 {[%emt 0:00:19]} 19. Rxd6+ {[%emt 0:05:51]} Ke7 {[%emt 0:02:29]} 20. Rhd1 {[%emt 0:01:09]} Be6 {[%emt 0:00:28]} 21. Ne4 {[%emt 0:00:28]} Rac8 {[%emt 0:05:13]} 22. f3 {[%emt 0:04:05]} h6 {[%emt 0:03:44]} 23. Nc3 {[%emt 0:01:18]} Rb8 {[%emt 0:05:01]} 24. Ra6 {[%emt 0:01:34]} Rb7 {[%emt 0:02:33]} 25. Rd4 {[%emt 0:04:48]} Rhb8 {[%emt 0:02:17]} 26. Nd1 {[%emt 0:07:36]} Kf8 {[%emt 0:06:43]} 27. Kd2 {[%emt 0:00:40]} h5 {[%emt 0:03:06]} 28. h4 {[%emt 0:01:56]} Kg7 {[%emt 0:01:18]} 29. Kc3 {[%emt 0:04:07]} Kh6 {[%emt 0:02:44]} 30. Ne3 {[%emt 0:10:49]} Rxb2 {[%emt 0:04:17]} 31. Rxa7 {[%emt 0:01:04]} Rb1 {[%emt 0:01:46]} 32. a4 {[%emt 0:06:23]} Re1 {[%emt 0:03:16]} 33. Re4 {[%emt 0:02:03]} Ra1 {[%emt 0:01:35]} 34. g4 {[%emt 0:03:26]} Ra3+ {[%emt 0:02:59]} 35. Kd4 {[%emt 0:02:01]} Rd8+ {[%emt 0:01:13]} 36. Ke5 {[%emt 0:03:37]} ({White has to play} 36. Kc5 $18 Rd7 37. Nxc4 Rxa7 38. Nxa3) 36... hxg4 {[%emt 0:03:30]} 37. fxg4 {[%emt 0:01:17]} Kg7 {[%emt 0:05:45]} 38. Kf4 {[%emt 0:00:42]} Kg8 {[%emt 0:02:25]} 39. Kg5 {[%emt 0:01:52]} Rxe3 $18 {[%emt 0:03:04]} (39... Kf8 40. Nxc4 Bxc4) 40. Rxe3 {[%emt 0:00:05]} Kf8 {[%emt 0:02:19]} 41. Kf6 {[%emt 0:00:23]} Bd5 {[%emt 0:01:33]} 42. h5 {[%emt 0:01:19]} Rd6+ {[%emt 0:00:39]} 43. Kg5 {[%emt 0:00:22]} gxh5 {[%emt 0:00:40]} 44. gxh5 {[%emt 0:00:15]} Kg7 {[%emt 0:00:37]} 45. a5 {[%emt 0:06:17]} Be6 {[%emt 0:00:35]} 46. a6 {[%emt 0:04:17]} Rd5+ {[%emt 0:00:51]} 47. Kh4 {[%emt 0:00:20]} Kh6 {[%emt 0:00:40]} 48. Ra8 {[%emt 0:01:09]} Rxh5+ {[%emt 0:00:32]} 49. Kg3 {[%emt 0:00:04]} Rh3+ {[%emt 0:01:00]} 50. Kf4 {[%emt 0:00:09]} Rh4+ {[%emt 0:00:16]} 51. Ke5 {[%emt 0:00:52]} Rh5+ {[%emt 0:00:24]} 52. Kd6 {[%emt 0:01:04]} Kg6 {[%emt 0:00:59]} 53. a7 {[%emt 0:00:47]} Rd5+ {[%emt 0:00:37]} 54. Kc6 {[%emt 0:00:38]} Ra5 {[%emt 0:00:21]} 55. Kb6 {[%emt 0:00:17]} Ra2 {[%emt 0:00:44]} 56. Rg8+ {[%emt 0:00:17]} Kh7 {[%emt 0:00:25]} 57. a8=Q {[%emt 0:00:22]} 1-0

[Event "Israeli Open Championship 2019"]
[Site "Jerusalem"]
[Date "2019.12.20"]
[Round "8.11"]
[White "Kuritz, Zvi"]
[Black "Nissim, Yonatan"]
[Result "0-1"]
[ECO "B23"]
[WhiteElo "1907"]
[BlackElo "2040"]
[Annotator "NA RC"]
[PlyCount "94"]
[EventDate "2019.12.12"]
[EventType "swiss"]
[EventCountry "ISR"]
[SourceTitle "playchess.com"]
[Source "ChessBase"]
[SourceQuality "1"]
[TimeControl "5400+30"]

{[%evp 8,93,27,24,32,17,40,-56,-43,-77,-64,-76,-85,-86,-81,-126,-102,-87,-85,6,-89,15,-110,-141,-124,-122,32767,32767,32767,-147,32767,-125,-111,-115,2,12,147,143,144,143,32767,84,90,32767,90,32767,32767,32767,32767,32767,32767,0,32767,32767,32767,0,-10,-21,-18,-491,-18,-379,-517,-522,-557,-588,32767,-742,-172,-962,-1257,32767,32767,32767,-1642,-1419,-1675,-1441,-2572,-1866,32767,32767,-5527,32767,32767,32767,-476,-29990]} 1. e4 {[%emt 0:00:00]} c5 {[%emt 0:00:00]} 2. Nc3 {[%emt 0:00:00]} g6 {[%emt 0:00:10]} 3. f4 {[%emt 0:00:00]} Bg7 {[%emt 0:00:29]} 4. Nf3 {[%emt 0:00:11]} Nc6 {[%emt 0:00:11]} 5. d3 {[%emt 0:04:17]} e6 {[%emt 0:04:12]} 6. e5 {[%emt 0:03:46] B23: Closed Sicilian: Lines without g3} (6. g3 Nge7 7. Bg2 f5 8. O-O d5 9. e5 Qd7 10. d4 cxd4 11. Ne2 b6 12. Nexd4 Ba6 13. Rf2 O-O 14. Be3 Rfd8 15. Rd2 Rac8 16. Bh3 h5 17. Bg2 Nxd4 18. Nxd4 Nc6 19. Nxc6 Qxc6 20. c3 Bf8 21. Bd4 Be7 22. Qf3 {½-½ (22) Gelashvili,T (2547)-Anastasian,A (2591) Dubai 2002}) 6... d6 {[%emt 0:02:31]} 7. exd6 {[%emt 0:06:42]} Qxd6 {[%emt 0:00:17]} 8. Be3 {[%emt 0:00:40]} b6 {[%emt 0:02:55]} 9. Be2 $146 {[%emt 0:14:52]} ({Predecessor:} 9. Ne4 Qd7 10. c3 f5 11. Nf2 Nge7 12. Qd2 e5 13. fxe5 Nxe5 14. Nxe5 Bxe5 {½-½ (29) Budzinski,J (1846)-Musialkiewicz,J (2115) Chotowa 2009}) 9... Nge7 {[%emt 0:00:43]} 10. O-O {[%emt 0:04:41]} O-O {[%emt 0:04:18]} 11. Nd2 {[%emt 0:07:28]} Nf5 {[%emt 0:12:22]} 12. Nc4 {[%emt 0:03:17]} Nxe3 {[%emt 0:02:32]} 13. Nxd6 {[%emt 0:02:39]} Nxd1 {[%emt 0:00:07]} 14. Raxd1 {[%emt 0:00:26]} Nd4 {[%emt 0:00:28]} 15. Nxc8 {[%emt 0:02:08]} Raxc8 {[%emt 0:00:53]} 16. Rd2 {[%emt 0:00:59]} c4 {[%emt 0:07:40]} 17. Bd1 {[%emt 0:03:33]} Rfd8 {[%emt 0:01:38]} 18. Ne4 {[%emt 0:05:28]} e5 {[%emt 0:03:36]} 19. dxc4 {[%emt 0:09:38]} (19. fxe5 $11 Bh6 20. c3) 19... f5 {[%emt 0:12:43]} 20. Ng5 {[%emt 0:03:50]} e4 {[%emt 0:00:42]} ({Don't blunder} 20... Rxc4 $2 21. c3 $18) (20... h6 $17 21. c3 hxg5 22. cxd4 gxf4) 21. c3 {[%emt 0:00:54]} e3 {[%emt 0:02:16]} (21... h6 $11 {keeps the balance.} 22. Nxe4 fxe4 23. cxd4 Bxd4+ 24. Kh1 Kg7) 22. Rxd4 {[%emt 0:00:49]} Bxd4 {[%emt 0:00:20]} 23. cxd4 {[%emt 0:00:15]} Rxd4 {[%emt 0:00:16]} 24. b3 {[%emt 0:01:46]} (24. Re1 $142) 24... h6 {[%emt 0:05:39]} 25. Nf3 {[%emt 0:02:24]} Rxf4 {[%emt 0:01:06]} 26. Bc2 {[%emt 0:01:16]} Re8 {[%emt 0:02:40]} 27. Re1 {[%emt 0:02:29]} g5 {[%emt 0:00:30]} 28. Re2 {[%emt 0:01:32]} Kf7 {[%emt 0:02:08]} 29. Ne1 {[%emt 0:01:00]} Kf6 {[%emt 0:01:09]} 30. g3 {[%emt 0:00:27]} Rd4 {[%emt 0:00:55]} 31. h3 {[%emt 0:01:22]} f4 {[%emt 0:05:10]} 32. gxf4 {[%emt 0:02:36]} gxf4 {[%emt 0:00:05]} 33. Kf1 $2 {[%emt 0:03:27] [#]} (33. Nf3 $15 Rg8+ 34. Rg2) 33... Rg8 $2 {[%emt 0:00:38]} (33... f3 $1 $19 {[%cal Rf3e2][%mdl 512]} 34. Nxf3 Rf4) 34. Rg2 $2 {[%emt 0:01:19]} (34. Nf3 $15 Rd7 35. Be4) 34... Rxg2 {[%emt 0:01:01]} 35. Kxg2 {[%emt 0:01:06]} Rd2+ {[%emt 0:00:30]} 36. Kf3 {[%emt 0:00:10]} Ke5 {[%emt 0:00:24]} 37. Bd3 {[%emt 0:02:26]} Rf2+ {[%emt 0:02:33]} 38. Kg4 {[%emt 0:00:10]} Kd4 {[%emt 0:01:29]} 39. c5 {[%emt 0:00:49]} bxc5 {[%emt 0:00:12]} 40. Bc4 {[%emt 0:00:14]} e2 {[%emt 0:03:01]} 41. Nf3+ {[%emt 0:02:42] [#]} Rxf3 $1 {[%emt 0:00:37] Promotion} 42. Bxe2 {[%emt 0:00:21]} Rf2 {[%emt 0:00:07]} 43. Bc4 {[%emt 0:00:23]} Ke3 {[%emt 0:00:24]} 44. a4 {[%emt 0:00:14]} f3 $19 {[%emt 0:00:32]} 45. h4 {[%emt 0:00:20]} Re2 {[%emt 0:01:00]} 46. Kg3 {[%emt 0:00:27]} Rg2+ {[%emt 0:00:11]} 47. Kh3 {[%emt 0:00:08]} Rg7 {[%emt 0:00:31]} 0-1

[Event "Israeli Open Championship 2019"]
[Site "Jerusalem"]
[Date "2019.12.20"]
[Round "8.17"]
[White "Levitan, Ronit"]
[Black "Zak, Arad"]
[Result "0-1"]
[ECO "B04"]
[WhiteElo "1876"]
[BlackElo "2076"]
[Annotator "NA RC"]
[PlyCount "108"]
[EventDate "2019.12.12"]
[EventType "swiss"]
[EventCountry "ISR"]
[SourceTitle "playchess.com"]
[Source "ChessBase"]
[SourceQuality "1"]
[TimeControl "5400+30"]

{[%evp 8,108,43,63,57,38,29,29,29,42,27,35,35,23,32767,20,32767,32767,40,-8,32767,-11,0,32767,32767,-10,5,-11,-10,-40,-36,-32,0,-23,-27,-84,32767,-33,0,-4,32767,32767,32767,32767,32767,0,32767,32767,32767,32767,-10,-32,0,32767,32767,32767,32767,32767,32767,32767,-8,-40,-37,-52,-39,-67,-34,-39,0,-7,0,-37,0,-48,-35,32767,-56,32767,-69,-94,-109,-98,-113,32767,-110,32767,32767,32767,-128,-158,-132,-293,-368,32767,32767,-397,32767,-330,-351,-341,-370,-29991,-29992]} 1. e4 {[%emt 0:00:00]} Nf6 {[%emt 0:10:45]} 2. e5 {[%emt 0:00:20]} Nd5 {[%emt 0:00:08]} 3. d4 {[%emt 0:00:04]} d6 {[%emt 0:00:07]} 4. Nf3 {[%emt 0:00:06]} dxe5 {[%emt 0:00:17]} 5. Nxe5 {[%emt 0:04:34]} c6 {[%emt 0:00:15]} 6. Be2 {[%emt 0:02:06]} Bf5 {[%emt 0:05:41] B04: Alekhine's Defence: 4 Nf3} 7. a3 {[%emt 0:04:22]} (7. c3 Nd7 8. Nf3 e6 9. O-O Bd6 10. Re1 O-O 11. Nbd2 h6 12. Nc4 Bc7 13. a4 a5 14. Bd3 {1-0 (40) Vachier Lagrave,M (2779)-Dominguez Perez,L (2739) chess.com INT 2018}) 7... Nd7 {[%emt 0:06:41]} 8. Nf3 {[%emt 0:05:15]} Qc7 {[%emt 0:01:19]} 9. O-O {[%emt 0:08:31]} e6 {[%emt 0:00:37]} 10. c4 $146 {[%emt 0:01:20]} ({Predecessor:} 10. g3 Bd6 11. c4 N5f6 12. c5 Be7 13. Bf4 Qc8 14. Nc3 {1-0 (60) Singer,C (2362)-Huber,S (2030) Munich 2011}) 10... Nf4 {[%emt 0:02:03]} 11. Nc3 {[%emt 0:00:53]} Nf6 {[%emt 0:01:59]} 12. Ne5 {[%emt 0:15:53]} Nxe2+ {[%emt 0:01:24]} 13. Nxe2 {[%emt 0:02:32]} Bd6 {[%emt 0:03:07]} 14. Ng3 {[%emt 0:09:04]} Bg6 {[%emt 0:04:16]} 15. Bf4 {[%emt 0:01:20]} Nd7 {[%emt 0:03:18]} 16. Nxg6 {[%emt 0:11:51]} hxg6 {[%emt 0:00:18]} 17. Bxd6 {[%emt 0:00:02]} Qxd6 {[%emt 0:00:06]} 18. Re1 {[%emt 0:00:21]} Nf6 {[%emt 0:00:26]} 19. h3 {[%emt 0:01:35]} Rh4 {[%emt 0:01:18]} 20. Qb3 {[%emt 0:03:31]} O-O-O {[%emt 0:00:49]} 21. c5 {[%emt 0:13:42]} (21. Ne2 $11) 21... Qd5 {[%emt 0:08:45]} 22. Qxd5 {[%emt 0:00:17]} Nxd5 {[%emt 0:00:43]} 23. Ne4 {[%emt 0:01:26]} Rd7 {[%emt 0:02:52]} 24. Rad1 {[%emt 0:00:37]} Kd8 {[%emt 0:02:33]} 25. Nd6 {[%emt 0:01:08]} Nf6 {[%emt 0:01:20]} 26. Rd3 {[%emt 0:02:54]} Ne8 {[%emt 0:00:49]} 27. Nxe8 {[%emt 0:00:38]} Kxe8 {[%emt 0:00:10]} 28. g4 {[%emt 0:00:32]} Ke7 {[%emt 0:00:53]} 29. Kg2 {[%emt 0:00:07]} Rh8 {[%emt 0:01:01]} 30. f4 {[%emt 0:02:55]} Rhd8 {[%emt 0:00:09]} 31. Red1 {[%emt 0:00:04]} Rd5 {[%emt 0:00:51]} 32. Kf3 {[%emt 0:00:29]} g5 {[%emt 0:00:21]} 33. fxg5 {[%emt 0:01:52]} Rxg5 {[%emt 0:00:17]} 34. Rb3 {[%emt 0:00:10]} Rd7 {[%emt 0:00:13]} 35. h4 {[%emt 0:01:04]} Rgd5 {[%emt 0:00:12]} 36. g5 {[%emt 0:02:17]} Kd8 {[%emt 0:02:04]} 37. Ke4 {[%emt 0:02:25]} Kc7 {[%emt 0:00:17]} 38. Rbd3 {[%emt 0:00:10]} Kd8 {[%emt 0:02:47]} 39. Rb3 {[%emt 0:00:49]} Ke7 {[%emt 0:00:36]} 40. Rbd3 {[%emt 0:00:05]} f5+ {[%emt 0:01:46]} 41. gxf6+ {[%emt 0:01:06]} gxf6 {[%emt 0:00:10]} 42. Rh1 {[%emt 0:00:56]} e5 {[%emt 0:01:52]} 43. h5 {[%emt 0:00:51]} Rxd4+ {[%emt 0:00:36]} 44. Rxd4 {[%emt 0:00:04]} Rxd4+ {[%emt 0:00:03]} 45. Ke3 {[%emt 0:00:28]} Rd8 {[%emt 0:00:33]} 46. Rg1 {[%emt 0:01:23]} Kf7 {[%emt 0:00:15]} 47. h6 {[%emt 0:00:04] [#]} Rg8 $1 {[%emt 0:00:25]} 48. Rd1 {[%emt 0:00:24]} Ke7 {[%emt 0:00:26]} 49. Ke4 $2 {[%emt 0:00:42]} (49. Rh1 $17 {was worth a try.}) 49... Rg4+ {[%emt 0:01:02]} 50. Kf5 {[%emt 0:00:33]} Rg5+ {[%emt 0:00:11]} 51. Ke4 {[%emt 0:00:11]} Rh5 {[%emt 0:00:20]} 52. Rg1 {[%emt 0:00:31]} Rxh6 {[%emt 0:00:47]} 53. Rg7+ {[%emt 0:00:04]} Ke6 {[%emt 0:00:06]} 54. Rxb7 $2 {[%emt 0:00:08]} (54. Kd3 $19 b5 55. cxb6 axb6 56. a4) 54... Rh3 {[%emt 0:00:08]} 0-1

[Event "Israeli Open Championship 2019"]
[Site "Jerusalem"]
[Date "2019.12.22"]
[Round "9.1"]
[White "Lahav, Michal"]
[Black "Rechlis, Gad"]
[Result "1-0"]
[ECO "A49"]
[WhiteElo "2244"]
[BlackElo "2490"]
[Annotator "ChessBase"]
[PlyCount "103"]
[EventDate "2019.12.12"]
[EventType "swiss"]
[EventCountry "ISR"]
[SourceTitle "playchess.com"]
[Source "ChessBase"]
[SourceQuality "1"]
[TimeControl "5400+30"]

1. d4 {[%emt 0:00:00]} Nf6 {[%emt 0:08:35]} 2. Nf3 {[%emt 0:00:00]} d6 {[%emt 0:06:09]} 3. g3 {[%emt 0:00:05]} g6 {[%emt 0:03:21]} 4. Bg2 {[%emt 0:00:07]} Bg7 {[%emt 0:00:07]} 5. O-O {[%emt 0:00:21]} O-O {[%emt 0:00:03]} 6. Nc3 {[%emt 0:00:30]} Nbd7 {[%emt 0:05:30]} 7. d5 {[%emt 0:00:12]} Nb6 {[%emt 0:05:13]} 8. Nd4 {[%emt 0:00:47]} e5 {[%emt 0:11:58]} 9. dxe6 {[%emt 0:00:26]} fxe6 {[%emt 0:00:07]} 10. Qd3 {[%emt 0:01:41]} e5 {[%emt 0:04:10]} 11. Nf3 {[%emt 0:01:35]} Qe8 {[%emt 0:10:38]} 12. e4 {[%emt 0:01:32]} d5 {[%emt 0:01:01]} 13. Re1 {[%emt 0:02:29]} d4 {[%emt 0:03:56]} 14. Nb5 {[%emt 0:02:20]} Qe7 {[%emt 0:00:52]} 15. c3 {[%emt 0:21:06]} c6 {[%emt 0:07:24]} 16. Na3 {[%emt 0:02:45]} c5 {[%emt 0:02:53]} 17. cxd4 {[%emt 0:02:45]} cxd4 {[%emt 0:00:21]} 18. Bd2 {[%emt 0:00:12]} Ne8 {[%emt 0:01:39]} 19. Nc2 {[%emt 0:05:53]} Qf6 {[%emt 0:03:16]} 20. Kh1 {[%emt 0:08:02]} Bg4 {[%emt 0:04:52]} 21. Ng1 {[%emt 0:00:35]} Qxf2 {[%emt 0:02:55]} 22. Rf1 {[%emt 0:01:29]} Nd6 {[%emt 0:04:04]} 23. Rxf2 {[%emt 0:01:41]} Rxf2 {[%emt 0:00:01]} 24. h3 {[%emt 0:01:25]} Bd7 {[%emt 0:02:35]} 25. Na3 {[%emt 0:01:44]} Bc6 {[%emt 0:00:23]} 26. Re1 {[%emt 0:00:15]} Na4 {[%emt 0:02:06]} 27. b4 {[%emt 0:01:36]} b5 {[%emt 0:01:59]} 28. Nf3 {[%emt 0:01:21]} Nb2 {[%emt 0:02:28]} 29. Qb3+ {[%emt 0:02:01]} Nbc4 {[%emt 0:00:14]} 30. Kg1 {[%emt 0:00:17]} Rxg2+ {[%emt 0:01:38]} 31. Kxg2 {[%emt 0:00:01]} Kh8 {[%emt 0:01:36]} 32. Bc1 {[%emt 0:03:10]} Rc8 {[%emt 0:02:57]} 33. Nxc4 {[%emt 0:04:17]} bxc4 {[%emt 0:00:04]} 34. Qa3 {[%emt 0:00:17]} c3 {[%emt 0:01:02]} 35. b5 {[%emt 0:01:19]} Nxb5 {[%emt 0:00:25]} 36. Qe7 {[%emt 0:00:03]} d3 {[%emt 0:00:31]} 37. Qe6 {[%emt 0:00:44]} Bb7 {[%emt 0:00:54]} 38. Nxe5 {[%emt 0:00:08]} h6 {[%emt 0:00:23]} 39. Nxd3 {[%emt 0:01:13]} Nd4 {[%emt 0:00:27]} 40. Qxg6 {[%emt 0:00:06]} Rc6 {[%emt 0:00:25]} 41. Qe8+ {[%emt 0:00:32]} Kh7 {[%emt 0:00:06]} 42. Qd7 {[%emt 0:00:46]} Bc8 {[%emt 0:00:14]} 43. Qxa7 {[%emt 0:00:17]} Ra6 {[%emt 0:00:01]} 44. Qc7 {[%emt 0:01:44]} Rxa2+ {[%emt 0:00:15]} 45. Nf2 {[%emt 0:00:01]} Bxh3+ {[%emt 0:01:05]} 46. Kxh3 {[%emt 0:00:10]} Rxf2 {[%emt 0:00:02]} 47. Be3 {[%emt 0:00:31]} Ne6 {[%emt 0:00:08]} 48. Qxg7+ {[%emt 0:00:24]} Kxg7 {[%emt 0:00:22]} 49. Bxf2 {[%emt 0:00:02]} Kf6 {[%emt 0:00:23]} 50. Rc1 {[%emt 0:00:07]} Ng5+ {[%emt 0:00:22]} 51. Kg2 {[%emt 0:00:05]} Nxe4 {[%emt 0:00:09]} 52. Bd4+ {[%emt 0:00:01]} 1-0